bitfinex/quotes_SOLUSD_20250527
["timestamp","ask_amount","ask_price","bid_price","bid_amount"]
[1748324554683,13.79029209,173.3,173.25,58.49016221]
[1748324556284,13.79029209,173.3,173.25,42.79016221]
[1748324556982,10.47829839,173.3,173.25,42.79016221]
[1748324558892,13.7930177,173.3,173.25,42.79016221]
[1748324560104,10.47829839,173.3,173.25,42.79016221]
[1748324560793,8.17016221,173.29,173.25,34.62]
[1748324561094,5.77023131,173.31,173.25,34.62]
[1748324561294,8.17016221,173.3,173.25,42.79016221]
[1748324562106,2.30826937,173.29,173.25,42.79016221]
[1748324567905,8.17016221,173.3,173.25,42.79016221]
[1748324568809,2.30840258,173.28,173.25,42.79016221]
[1748324569685,3.31734248,173.29,173.27,8.17016221]
[1748324570013,2.30800817,173.31,173.28,8.17016221]
[1748324571597,8.17016221,173.3,173.25,8.17016221]
[1748324571802,8.17016221,173.3,173.26,34.62]
[1748324573018,2.30826937,173.29,173.26,34.62]
[1748324576415,10.47843158,173.29,173.26,34.62]
[1748324577819,8.17016221,173.28,173.26,34.62]
[1748324578330,8.17016221,173.27,173.23,51.92]
[1748324578515,8.17016221,173.3,173.23,36.22]
[1748324578516,8.17016221,173.25,173.23,36.22]
[1748324579525,2.30893558,173.24,173.23,36.22]
[1748324582728,5.77124679,173.28,173.23,36.22]
[1748324582729,8.07964937,173.28,173.23,36.22]
[1748324582931,10.47856479,173.28,173.23,44.39016221]
[1748324583232,3.31786718,173.27,173.23,44.39016221]
[1748324583424,11.48802939,173.27,173.23,36.22]
[1748324584229,3.31786718,173.26,173.23,70.84]
[1748324584414,3.31786718,173.26,173.23,79.01016221]
[1748324585530,2.30826937,173.29,173.24,8.17016221]
[1748324585701,2.30826937,173.29,173.25,8.17016221]
[1748324585896,6.41236513,173.3,173.25,8.17016221]
[1748324586130,6.41236513,173.3,173.23,86.54]
[1748324586340,8.17016221,173.27,173.23,15.7]
[1748324586534,8.17016221,173.27,173.23,50.32]
[1748324586840,8.17016221,173.26,173.23,15.7]
[1748324587207,8.17016221,173.25,173.22,36.22]
[1748324587403,8.17016221,173.24,173.22,36.22]
[1748324587624,2.30906886,173.23,173.22,36.22]
[1748324589732,2.30840258,173.28,173.22,36.22]
[1748324589911,8.17016221,173.26,173.22,36.22]
[1748324591009,2.3088023,173.25,173.22,36.22]
[1748324591830,5.6239848,173.26,173.22,36.22]
[1748324592049,13.79414701,173.26,173.22,36.22]
[1748324592449,5.6239848,173.26,173.22,36.22]
[1748324592752,10.47884133,173.26,173.22,36.22]
[1748324594908,2.30867912,173.26,173.22,36.22]
[1748324595044,10.47884133,173.26,173.22,36.22]
[1748324595549,2.30854485,173.27,173.22,44.39016221]
[1748324595752,10.47870706,173.27,173.22,44.39016221]
[1748324596460,8.17016221,173.26,173.22,36.22]
[1748324596661,8.17016221,173.25,173.22,36.22]
[1748324598163,8.17016221,173.24,173.22,36.22]
[1748324598734,2.30899589,173.24,173.22,36.22]
[1748324599349,10.47883126,173.26,173.22,36.22]
[1748324599529,8.17016221,173.24,173.22,36.22]
[1748324601059,10.47911457,173.24,173.22,36.22]
[1748324602161,10.47896451,173.25,173.22,36.22]
[1748324604842,8.17016221,173.24,173.22,36.22]
[1748324605259,8.17016221,173.23,173.22,36.22]
[1748324605745,8.17016221,173.23,173.2,50.32]
[1748324606167,5.77179911,173.26,173.2,50.32]
[1748324606369,8.17016221,173.24,173.2,50.32]
[1748324608165,2.30906886,173.23,173.2,50.32]
[1748324608962,2.30906886,173.23,173.2,58.49016221]
[1748324609163,2.30906886,173.23,173.2,50.32]
[1748324609543,10.47923107,173.23,173.18,49.87016221]
[1748324609744,8.17016221,173.22,173.17,60.11016221]
[1748324610369,2.30933548,173.21,173.18,34.62]
[1748324611277,2.30933548,173.21,173.17,94.73016221]
[1748324611487,8.17016221,173.23,173.18,8.17016221]
[1748324612372,8.17016221,173.23,173.17,94.73016221]
[1748324613082,2.30920217,173.22,173.17,94.73016221]
[1748324613783,2.30920217,173.22,173.19,8.17016221]
[1748324614089,2.30920217,173.22,173.18,8.17016221]
[1748324614400,10.47936438,173.22,173.17,94.73016221]
[1748324614683,8.17016221,173.2,173.17,36.24]
[1748324615060,8.17016221,173.19,173.17,36.24]
[1748324615274,8.08220759,173.22,173.17,36.24]
[1748324615275,8.17016221,173.2,173.17,36.24]
[1748324615669,10.47949769,173.21,173.17,36.24]
[1748324616594,2.30906886,173.23,173.17,44.41016221]
[1748324616756,10.47923107,173.23,173.18,8.17016221]
[1748324617397,8.17016221,173.22,173.17,60.11016221]
[1748324617573,8.17016221,173.22,173.17,51.94]
[1748324617887,8.17016221,173.22,173.17,60.11016221]
[1748324618568,10.47923107,173.23,173.17,60.11016221]
[1748324619684,8.17016221,173.21,173.17,51.94]
[1748324620793,2.30946882,173.2,173.17,51.94]
[1748324621274,10.47963103,173.2,173.17,51.94]
[1748324621480,10.47963103,173.2,173.17,36.24]
[1748324622766,2.30986891,173.17,173.12,86.66]
[1748324622970,8.17016221,173.16,173.12,70.96]
[1748324623171,8.17016221,173.16,173.12,36.34]
[1748324623365,8.17016221,173.16,173.12,70.96]
[1748324624063,2.31013572,173.15,173.12,36.34]
[1748324624273,2.31013572,173.15,173.12,70.98]
[1748324630088,2.31013572,173.15,173.12,36.34]
[1748324630089,10.48029793,173.15,173.12,36.34]
[1748324630273,8.17016221,173.13,173.12,36.34]
[1748324630472,2.31013572,173.15,173.12,36.34]
[1748324630473,8.17016221,173.14,173.12,36.34]
[1748324630683,10.48056412,173.14,173.12,36.34]
[1748324632467,3.00753331,173.18,173.12,36.34]
[1748324632673,8.17016221,173.17,173.12,44.51016221]
[1748324632901,10.4801468,173.17,173.12,44.51016221]
[1748324636179,10.4801468,173.17,173.12,60.21016221]
[1748324636899,10.47991503,173.18,173.13,8.17016221]
[1748324638875,8.17016221,173.15,173.12,52.04]
[1748324639081,8.17016221,173.14,173.12,52.04]
[1748324639382,8.17016221,173.14,173.12,36.34]
[1748324640601,10.48049104,173.14,173.12,36.34]
[1748324640799,2.31032883,173.14,173.12,36.34]
[1748324644612,3.30369131,173.19,173.12,44.51016221]
[1748324644841,8.17016221,173.17,173.12,44.51016221]
[1748324644980,10.48006439,173.17,173.12,44.51016221]
[1748324645180,8.17016221,173.16,173.12,36.34]
[1748324646081,10.48006439,173.17,173.12,44.51016221]
[1748324647432,2.30990218,173.17,173.13,8.17016221]
[1748324648304,8.17016221,173.16,173.12,52.04]
[1748324648710,10.48006439,173.17,173.12,60.21016221]
[1748324650191,8.17016221,173.18,173.13,8.17016221]
[1748324650506,2.30946882,173.2,173.13,8.17016221]
[1748324650694,8.17016221,173.18,173.13,8.17016221]
[1748324651205,10.47996575,173.18,173.13,8.17016221]
[1748324651409,8.17016221,173.17,173.12,60.21016221]
[1748324652411,10.4801251,173.17,173.12,60.21016221]
[1748324652915,2.30974704,173.18,173.13,8.17016221]
[1748324653213,2.30974704,173.18,173.14,8.17016221]
[1748324653388,10.47973572,173.2,173.14,8.17016221]
[1748324653586,10.47973572,173.2,173.15,8.17016221]
[1748324653802,10.47973572,173.2,173.16,34.64]
[1748324653981,8.17016221,173.18,173.16,34.64]
[1748324654610,8.17016221,173.19,173.16,34.64]
[1748324655508,2.30973553,173.18,173.16,34.64]
[1748324656402,2.30973553,173.18,173.13,23.87016221]
[1748324656403,10.47989774,173.18,173.13,15.7]
[1748324656582,8.17016221,173.17,173.14,34.64]
[1748324657518,10.48012666,173.17,173.14,34.64]
[1748324658108,8.17016221,173.16,173.14,34.64]
[1748324659123,8.17016221,173.16,173.12,52.04]
[1748324659488,8.17016221,173.16,173.12,86.68]
[1748324660015,10.48025668,173.16,173.12,86.68]
[1748324662713,10.48025668,173.16,173.12,50.34]
[1748324668813,10.48025668,173.16,173.12,34.64]
[1748324673325,10.48025668,173.16,173.12,34.58410778]
[1748324675926,8.17016221,173.17,173.12,34.58410778]
[1748324676522,3.31789855,173.16,173.12,34.58410778]
[1748324677526,2.31000231,173.16,173.12,34.58410778]
[1748324685726,2.31000231,173.16,173.12,42.75426999]
[1748324688525,2.30973553,173.18,173.12,42.75426999]
[1748324688830,8.17016221,173.17,173.12,42.75426999]
[1748324689328,3.31926145,173.16,173.12,42.75426999]
[1748324690437,2.31000231,173.16,173.12,42.75426999]
[1748324691145,2.30973553,173.18,173.14,8.17016221]
[1748324691327,6.41382736,173.19,173.15,8.17016221]
[1748324692138,3.31961562,173.18,173.15,8.17016221]
[1748324693137,2.30963879,173.19,173.15,8.17016221]
[1748324694241,2.30946882,173.2,173.15,8.17016221]
[1748324694533,3.31915681,173.19,173.15,8.17016221]
[1748324695136,3.31915681,173.19,173.17,8.17016221]
[1748324695436,3.31915681,173.19,173.17,42.81016221]
[1748324695814,2.30946882,173.2,173.17,42.81016221]
[1748324697835,3.31839176,173.19,173.17,42.81016221]
[1748324698210,3.31839176,173.19,173.17,34.64]
[1748324699232,5.62799856,173.19,173.17,34.64]
[1748324699620,2.3096068,173.19,173.17,34.64]
[1748324703334,2.30949666,173.2,173.17,34.64]
[1748324703638,5.62711508,173.2,173.17,34.64]
[1748324703843,3.31761842,173.2,173.17,34.64]
[1748324704229,13.48641746,173.21,173.17,34.64]
[1748324705232,8.17016221,173.2,173.17,34.64]
[1748324705638,5.31625525,173.21,173.17,34.64]
[1748324706245,5.31625525,173.21,173.17,42.81016221]
[1748324706548,2.30934024,173.21,173.17,42.81016221]
[1748324706919,2.30920217,173.22,173.17,42.81016221]
[1748324709140,2.30920217,173.22,173.18,8.17016221]
[1748324711347,10.47936438,173.22,173.17,42.81016221]
[1748324711524,10.47936438,173.22,173.17,34.64]
[1748324712058,8.17016221,173.21,173.17,34.64]
[1748324712755,2.30946882,173.2,173.17,34.64]
[1748324713258,2.30946882,173.2,173.17,42.81016221]
[1748324714461,2.30933548,173.21,173.17,42.81016221]
[1748324717843,2.30922478,173.22,173.18,8.17016221]
[1748324718155,5.62192039,173.23,173.19,8.17016221]
[1748324718361,2.30909641,173.23,173.19,8.17016221]
[1748324719060,3.00615909,173.24,173.2,8.17016221]
[1748324719233,3.00615909,173.24,173.21,8.17016221]
[1748324720551,5.31510667,173.24,173.2,8.17016221]
[1748324722441,3.00615909,173.24,173.2,8.17016221]
[1748324722740,3.00615909,173.24,173.21,8.17016221]
[1748324723241,5.31509731,173.24,173.21,8.17016221]
[1748324724852,3.00615909,173.24,173.21,8.17016221]
[1748324728955,5.315148,173.24,173.2,8.17016221]
[1748324730273,5.315148,173.24,173.21,8.17016221]
[1748324731169,5.315148,173.24,173.19,17.3619]
[1748324731375,5.315148,173.24,173.21,8.17016221]
[1748324732580,5.315148,173.24,173.21,42.79016221]
[1748324735074,3.00615909,173.24,173.21,42.79016221]
[1748324735569,5.31510897,173.24,173.21,34.62]
[1748324736075,13.48527118,173.24,173.21,34.62]
[1748324736461,2.30920217,173.22,173.19,50.32]
[1748324736858,2.30920217,173.22,173.19,34.62]
[1748324738093,2.30920217,173.22,173.18,60.07016221]
[1748324738391,8.17016221,173.2,173.18,36.2]
[1748324738684,10.47976438,173.19,173.13,60.07016221]
[1748324738857,8.17016221,173.18,173.14,34.62]
[1748324739871,8.17016221,173.16,173.13,36.2]
[1748324740263,8.17016221,173.15,173.13,36.2]
[1748324740777,2.31026914,173.14,173.13,36.2]
[1748324743281,8.17016221,173.16,173.13,36.2]
[1748324743465,2.31013572,173.15,173.13,36.2]
[1748324745055,8.17016221,173.15,173.13,36.2]
[1748324745376,2.30986891,173.17,173.08,15.7]
[1748324745377,8.17016221,173.14,173.08,15.7]
[1748324745554,8.17016221,173.11,173.07,15.7]
[1748324745749,8.17016221,173.12,173.07,23.87016221]
[1748324746554,8.17016221,173.1,173.07,15.7]
[1748324746768,8.17016221,173.1,173.06,58.51016221]
[1748324746969,10.48105141,173.1,173.06,58.51016221]
[1748324747491,10.48105141,173.1,173.06,50.34]
[1748324747779,2.3108892,173.1,173.06,58.51016221]
[1748324748759,2.31040258,173.13,173.07,8.17016221]
[1748324748965,8.17016221,173.12,173.07,8.17016221]
[1748324749892,2.31066951,173.11,173.07,8.17016221]
[1748324750684,8.17016221,173.1,173.06,15.7]
[1748324750864,8.17016221,173.1,173.06,34.64]
[1748324751065,8.17016221,173.1,173.05,34.17016221]
[1748324751275,8.17016221,173.1,173.05,68.81016221]
[1748324752074,12.76580668,173.1,173.05,73.40580668]
[1748324752690,15.07647619,173.11,173.06,12.76580668]
[1748324754792,12.76580668,173.1,173.05,73.40580668]
[1748324755167,2.31040258,173.13,173.06,12.76580668]
[1748324755398,12.76580668,173.12,173.08,12.76580668]
[1748324755983,5.31799855,173.13,173.08,12.76580668]
[1748324756181,18.08380523,173.13,173.08,12.76580668]
[1748324756589,15.07639727,173.12,173.07,12.76580668]
[1748324758792,2.31059059,173.12,173.08,12.76580668]
[1748324761194,5.31803537,173.13,173.09,12.76580668]
[1748324762485,18.08384205,173.13,173.08,12.76580668]
[1748324765999,18.08384205,173.13,173.09,12.76580668]
[1748324767397,3.00759597,173.13,173.11,12.76580668]
[1748324767598,2.31024894,173.15,173.11,12.76580668]
[1748324767798,12.76580668,173.16,173.12,12.76580668]
[1748324767799,2.31003966,173.16,173.12,12.76580668]
[1748324768002,15.07584634,173.16,173.12,12.76580668]
[1748324768187,15.0757046,173.17,173.12,12.76580668]
[1748324770704,2.30989792,173.17,173.12,12.76580668]
[1748324770889,2.30989792,173.17,173.14,12.76580668]
[1748324771091,2.30974643,173.18,173.14,12.76580668]
[1748324771288,18.08219033,173.2,173.15,12.76580668]
[1748324771487,5.31638365,173.2,173.15,12.76580668]
[1748324771683,3.00678425,173.2,173.17,12.76580668]
[1748324771899,3.00678425,173.2,173.18,8.15852844]
[1748324773894,3.00678425,173.2,173.18,12.74692365]
[1748324774095,3.00678425,173.2,173.19,12.74692365]
[1748324774296,2.30907695,173.23,173.19,12.74692365]
[1748324775183,15.05591302,173.24,173.19,12.74692365]
[1748324775508,2.30898937,173.24,173.21,12.74692365]
[1748324776606,2.30898937,173.24,173.2,47.38692365]
[1748324776783,12.74692365,173.21,173.19,15.7]
[1748324777107,15.05639247,173.2,173.19,15.7]
[1748324777301,15.05639247,173.2,173.15,12.74692365]
[1748324779817,12.74692365,173.19,173.15,12.74692365]
[1748324780420,2.30946882,173.2,173.15,12.74692365]
[1748324780619,2.30946882,173.2,173.16,12.74692365]
[1748324783021,2.30934334,173.21,173.17,12.74692365]
[1748324783407,15.05626699,173.21,173.16,12.74692365]
[1748324783797,2.30934334,173.21,173.16,12.74692365]
[1748324784118,15.05626699,173.21,173.16,12.74692365]
[1748324785704,2.30934334,173.21,173.16,12.74692365]
[1748324785899,15.05626699,173.21,173.16,12.74692365]
[1748324788325,2.30934334,173.21,173.17,12.74692365]
[1748324790401,15.05626699,173.21,173.14,86.52]
[1748324790699,15.05626699,173.21,173.16,12.74692365]
[1748324790919,2.30934334,173.21,173.17,12.74692365]
[1748324796223,15.05626699,173.21,173.16,12.74692365]
[1748324798032,10.46906206,173.21,173.16,8.15971872]
[1748324802637,10.46906206,173.21,173.15,50.34]
[1748324802825,10.46906206,173.21,173.16,8.15971872]
[1748324803541,5.77287283,173.23,173.17,8.15971872]
[1748324803730,8.15971872,173.22,173.17,8.15971872]
[1748324805138,8.15971872,173.21,173.16,8.15971872]
[1748324806047,2.30946882,173.2,173.16,8.15971872]
[1748324808941,2.30946882,173.2,173.15,94.67971872]
[1748324809134,2.30946882,173.2,173.15,58.49971872]
[1748324810542,2.30946882,173.2,173.16,8.15971872]
[1748324816037,2.30946882,173.2,173.15,42.79971872]
[1748324816245,10.46918754,173.2,173.15,42.79971872]
[1748324816447,10.46918754,173.2,173.15,34.64]
[1748324816821,16.24285959,173.2,173.15,34.64]
[1748324817646,8.15971872,173.19,173.13,104.97971872]
[1748324818142,8.08314087,173.2,173.14,8.15971872]
[1748324818348,3.29605329,173.18,173.14,8.15971872]
[1748324819551,16.24285959,173.2,173.14,8.15971872]
[1748324820253,5.77367205,173.2,173.14,8.15971872]
[1748324820549,13.93339077,173.2,173.14,8.15971872]
[1748324820851,3.32046102,173.19,173.14,8.15971872]
[1748324822749,16.24285959,173.2,173.14,8.15971872]
[1748324823149,8.15971872,173.18,173.13,8.15971872]
[1748324823528,8.15971872,173.18,173.12,42.79971872]
[1748324823727,3.31973769,173.17,173.11,37.8156]
[1748324823946,3.31973769,173.17,173.12,8.15971872]
[1748324824454,2.31000231,173.16,173.12,8.15971872]
[1748324824826,2.31000231,173.16,173.13,8.15971872]
[1748324825753,2.30986891,173.17,173.13,8.15971872]
[1748324826458,2.30960217,173.19,173.14,8.15971872]
[1748324826627,2.30960217,173.19,173.15,8.15971872]
[1748324827656,5.6271726,173.19,173.15,8.15971872]
[1748324828552,3.31757043,173.19,173.16,8.15971872]
[1748324828738,2.30949225,173.2,173.16,8.15971872]
[1748324831744,2.30933548,173.21,173.16,8.15971872]
[1748324831941,2.30933548,173.21,173.17,8.15971872]
[1748324832458,2.30933548,173.21,173.18,8.15971872]
[1748324832958,2.30920217,173.22,173.18,8.15971872]
[1748324833458,10.46892089,173.22,173.17,8.15971872]
[1748324834158,3.317074,173.21,173.18,8.15971872]
[1748324835562,2.30920217,173.22,173.19,8.15971872]
[1748324836134,2.30910119,173.23,173.2,8.15971872]
[1748324837460,5.62571372,173.23,173.2,8.15971872]
[1748324838339,2.30910119,173.23,173.2,8.15971872]
[1748324839558,2.30910119,173.23,173.17,88.12]
[1748324839759,2.30910119,173.23,173.19,8.15971872]
[1748324839962,5.62571372,173.23,173.19,8.15971872]
[1748324841062,2.30910119,173.23,173.19,8.15971872]
[1748324843169,8.15971872,173.25,173.2,8.15971872]
[1748324843660,3.31414386,173.24,173.2,8.15971872]
[1748324846066,5.62318162,173.24,173.2,8.15971872]
[1748324847460,3.31414386,173.24,173.21,8.15971872]
[1748324847766,3.31414386,173.24,173.22,8.15971872]
[1748324848375,3.31414386,173.24,173.23,8.15971872]
[1748324848672,5.62282454,173.26,173.23,8.15971872]
[1748324849067,5.62282454,173.26,173.24,8.15971872]
[1748324849258,5.62282454,173.26,173.23,8.15971872]
[1748324849657,2.30868068,173.26,173.23,8.15971872]
[1748324849984,2.30840258,173.28,173.23,12.73919546]
[1748324853958,12.73919546,173.28,173.23,12.73919546]
[1748324855978,2.30853581,173.27,173.23,12.73919546]
[1748324857685,2.30853581,173.27,173.22,50.32]
[1748324857861,12.73919546,173.25,173.22,15.7]
[1748324858183,12.73919546,173.24,173.22,15.7]
[1748324858779,12.73919546,173.25,173.22,15.7]
[1748324859891,2.30893558,173.24,173.22,15.7]
[1748324860264,15.04813104,173.24,173.22,15.7]
[1748324860987,15.04813104,173.24,173.19,47.35919546]
[1748324862088,20.82046999,173.24,173.19,47.35919546]
[1748324863889,20.82046999,173.24,173.19,34.62]
[1748324864063,20.82046999,173.24,173.19,47.35919546]
[1748324865789,20.82046999,173.24,173.19,12.73919546]
[1748324869972,13.92930779,173.24,173.19,8.15696884]
[1748324871390,16.23824337,173.24,173.19,8.15696884]
[1748324871690,8.08127453,173.24,173.19,8.15696884]
[1748324871988,16.23824337,173.24,173.19,8.15696884]
[1748324883499,19.55400563,173.24,173.19,8.15696884]
[1748324884792,16.23824337,173.24,173.19,8.15696884]
[1748324887623,2.30893558,173.24,173.2,8.15696884]
[1748324887775,2.30893558,173.24,173.21,8.15696884]
[1748324888787,5.62469784,173.24,173.21,8.15696884]
[1748324890197,2.30893558,173.24,173.21,8.15696884]
[1748324890702,2.30866905,173.26,173.22,8.15696884]
[1748324891209,2.30866905,173.26,173.23,8.15696884]
[1748324891910,2.30853581,173.27,173.23,8.15696884]
[1748324892512,10.46550465,173.27,173.22,8.15696884]
[1748324893107,3.31599106,173.26,173.22,8.15696884]
[1748324894393,2.3088023,173.25,173.22,8.15696884]
[1748324896885,5.77111054,173.28,173.22,8.15696884]
[1748324897216,8.15696884,173.28,173.23,8.15696884]
[1748324898112,5.62531402,173.27,173.23,8.15696884]
[1748324899315,2.30853581,173.27,173.23,8.15696884]
[1748324903315,2.30826937,173.29,173.23,8.15696884]
[1748324903523,8.15696884,173.28,173.23,8.15696884]
[1748324903721,11.4722893,173.28,173.23,8.15696884]
[1748324904722,3.31532046,173.28,173.24,8.15696884]
[1748324905424,2.30853581,173.27,173.24,8.15696884]
[1748324908419,5.62373199,173.28,173.24,8.15696884]
[1748324908618,5.62373199,173.28,173.25,8.15696884]
[1748324908821,5.6236301,173.29,173.26,8.15696884]
[1748324909422,3.31532046,173.29,173.26,8.15696884]
[1748324909918,2.30817516,173.3,173.26,8.15696884]
[1748324910506,2.30817516,173.3,173.27,8.15696884]
[1748324911022,5.62349562,173.3,173.27,8.15696884]
[1748324912026,2.30817516,173.3,173.27,8.15696884]
[1748324914319,2.30817516,173.3,173.28,8.15696884]
[1748324914632,2.30802984,173.31,173.28,8.15696884]
[1748324916713,2.30802984,173.31,173.29,8.15696884]
[1748324917419,2.30786983,173.32,173.29,8.15696884]
[1748324918029,2.30786983,173.32,173.25,57.5919365]
[1748324918335,2.30786983,173.32,173.29,8.15696884]
[1748324920936,13.26933842,173.33,173.3,8.15696884]
[1748324921641,13.26933842,173.33,173.29,8.15696884]
[1748324922828,13.26933842,173.33,173.29,42.77696884]
[1748324927150,13.26933842,173.33,173.29,34.62]
[1748324927319,13.26933842,173.33,173.29,42.77696884]
[1748324929325,13.26933842,173.33,173.3,8.15696884]
[1748324929564,10.96157064,173.33,173.3,8.15696884]
[1748324930339,13.26933534,173.33,173.3,8.15696884]
[1748324931338,10.96157064,173.33,173.3,8.15696884]
[1748324932047,10.96157064,173.33,173.3,23.85696884]
[1748324933037,13.26932566,173.33,173.3,15.7]
[1748324933234,13.26932566,173.33,173.3,23.85696884]
[1748324933644,10.96157064,173.33,173.3,23.85696884]
[1748324934248,10.96157064,173.33,173.31,8.15696884]
[1748324934450,10.96157064,173.33,173.32,52.8066177]
[1748324935456,10.96157064,173.33,173.32,34.15696884]
[1748324936641,10.96157064,173.33,173.32,58.57629229]
[1748324936845,10.96157064,173.33,173.32,34.15696884]
[1748324937736,10.96157064,173.33,173.32,58.57629229]
[1748324937962,10.96157064,173.33,173.32,52.8066177]
[1748324938262,10.96157064,173.33,173.32,34.15696884]
[1748324940260,10.96157064,173.33,173.32,39.92664343]
[1748324941457,10.96157064,173.33,173.32,58.57629229]
[1748324942469,10.96157064,173.33,173.32,74.27629229]
[1748324945049,2.30684039,173.4,173.36,26.0]
[1748324945257,2.30627306,173.44,173.39,8.15696884]
[1748324945453,2.30627306,173.44,173.4,8.15696884]
[1748324946338,2.30627306,173.44,173.39,15.7]
[1748324946753,2.30627306,173.44,173.41,8.15696884]
[1748324946946,8.89735472,173.45,173.42,8.15696884]
[1748324947151,2.30615472,173.45,173.42,8.15696884]
[1748324947947,2.30615472,173.45,173.41,8.15696884]
[1748324948146,2.30615472,173.45,173.39,41.7]
[1748324948350,10.46312356,173.45,173.4,8.15696884]
[1748324948669,2.30615472,173.45,173.41,8.15696884]
[1748324949451,2.30615472,173.45,173.39,41.7]
[1748324949658,2.30587421,173.47,173.41,8.15696884]
[1748324949868,8.15696884,173.46,173.41,8.15696884]
[1748324950571,8.15696884,173.45,173.4,8.15696884]
[1748324950768,8.15696884,173.44,173.4,8.15696884]
[1748324951079,8.15696884,173.43,173.39,23.85696884]
[1748324951568,8.15696884,173.43,173.39,15.7]
[1748324951774,2.30653903,173.42,173.39,15.7]
[1748324952650,2.30653903,173.42,173.38,34.6]
[1748324952973,2.30653903,173.42,173.38,42.75696884]
[1748324953867,2.30653903,173.42,173.37,49.85696884]
[1748324954369,2.30653903,173.42,173.38,8.15696884]
[1748324956165,2.30653903,173.42,173.39,8.15696884]
[1748324956373,10.46310893,173.45,173.4,8.15696884]
[1748324956761,8.15696884,173.44,173.39,8.15696884]
[1748324957672,2.30614009,173.45,173.39,8.15696884]
[1748324957673,8.15696884,173.43,173.39,8.15696884]
[1748324957876,2.30653903,173.42,173.39,8.15696884]
[1748324958977,2.30653903,173.42,173.37,41.7]
[1748324959173,10.46350787,173.42,173.37,84.45696884]
[1748324961977,10.46350787,173.42,173.37,76.3]
[1748324962275,10.46350787,173.42,173.37,84.45696884]
[1748324963180,2.30653903,173.42,173.38,8.15696884]
[1748324964267,2.30653903,173.42,173.39,8.15696884]
[1748324964584,2.30627306,173.44,173.4,8.15696884]
[1748324964773,10.4632419,173.44,173.39,23.85696884]
[1748324964959,10.4632419,173.44,173.39,15.7]
[1748324965284,10.4632419,173.44,173.39,23.85696884]
[1748324966779,2.30627306,173.44,173.4,8.15696884]
[1748324967783,2.30627306,173.44,173.41,8.15696884]
[1748324968687,16.22823287,173.46,173.41,8.15696884]
[1748324969184,10.46297598,173.46,173.41,8.15696884]
[1748324970089,8.15696884,173.45,173.4,44.27696884]
[1748324970490,8.15696884,173.45,173.4,59.97696884]
[1748324970786,2.30627306,173.44,173.4,59.97696884]
[1748324971381,2.30627306,173.44,173.4,51.82]
[1748324971571,2.30627306,173.44,173.4,59.97696884]
[1748324971773,10.4632419,173.44,173.4,51.82]
[1748324972394,8.15696884,173.42,173.4,51.82]
[1748324972587,8.15696884,173.41,173.4,51.82]
[1748324972886,8.15696884,173.41,173.35,62.12]
[1748324973090,8.15696884,173.4,173.35,104.85696884]
[1748324973784,2.30693811,173.39,173.35,70.27696884]
[1748324974893,8.15696884,173.4,173.36,8.15696884]
[1748324975198,8.15696884,173.4,173.35,70.27696884]
[1748324975782,10.46387726,173.4,173.35,70.27696884]
[1748324977403,2.30690842,173.4,173.36,8.15696884]
[1748324977989,10.46364088,173.41,173.36,8.15696884]
[1748324978185,2.30667204,173.41,173.37,8.15696884]
[1748324978894,5.6219925,173.41,173.37,8.15696884]
[1748324980388,2.30667204,173.41,173.37,8.15696884]
[1748324980597,2.30667204,173.41,173.36,8.15696884]
[1748324981594,8.15696884,173.42,173.37,8.15696884]
[1748324982382,8.15696884,173.42,173.36,8.15696884]
[1748324982869,8.15696884,173.41,173.36,8.15696884]
[1748324983490,10.46364606,173.41,173.36,8.15696884]
[1748324984981,8.15696884,173.42,173.37,8.15696884]
[1748324985402,3.31235777,173.41,173.37,8.15696884]
[1748324986104,3.31235777,173.41,173.36,8.15696884]
[1748324986697,10.4636346,173.42,173.36,8.15696884]
[1748324989104,8.15696884,173.41,173.36,23.85696884]
[1748324989598,11.47026732,173.42,173.37,8.15696884]
[1748324990415,3.31329848,173.41,173.37,8.15696884]
[1748324991514,3.31329848,173.41,173.38,8.15696884]
[1748324991689,9.4129162,173.45,173.4,8.15696884]
[1748324991899,6.41034712,173.45,173.41,8.15696884]
[1748324992599,3.31331789,173.44,173.41,8.15696884]
[1748324994310,10.46301252,173.46,173.41,44.37696884]
[1748324995210,2.30604368,173.46,173.42,8.15696884]
[1748324996105,4.10418857,173.47,173.42,8.15696884]
[1748324996410,4.10418857,173.47,173.45,8.15696884]
[1748324996786,4.10418857,173.47,173.42,41.7]
[1748324996982,3.31098302,173.48,173.42,49.85696884]
[1748324997182,3.31098302,173.48,173.43,8.15696884]
[1748324997381,5.61674178,173.48,173.43,8.15696884]
[1748324997612,11.46795186,173.48,173.43,8.15696884]
[1748324997796,13.77371458,173.48,173.43,8.15696884]